Workbook

Sheet Sheet1
C1: Joback Group Contribution Method for Property Estimation | AR1: Joback Group Contribution Method for Property Estimation
E2: Tohoku University, Version 1.7 | H2: For Educational Use Only! | W2: =W6*(8.314/1.987)*(1/1000) -> 0
F3: Report errors to R. L. Smith; Email: smith@scf.che.tohoku.ac.jp | P3: SUMS
B4: Groups | D4: Enter Number | P4: Tc | Q4: Pc | R4: Vc | S4: Tb | T4: Tf | U4: Hfk | V4: Gfk | W4: Hvk | X4: Hmk | Y4: CpAk | Z4: CpBk | AA4: CpCk | AB4: CpDk | AQ4: Groups | AS4: nA | AT4: Tc | AU4: Pc | AV4: Vc | AW4: Tb | AX4: Tf | AY4: Hfk | AZ4: Gfk | BA4: Hvk | BB4: Hmk | BC4: CpAk | BD4: CpBk | BE4: CpCk | BF4: CpDk
B5: Nonring increments: | D5: of Groups | F5: Estimation for known Tb | J5: Estimation for known Tb | P5: [K] | Q5: [bar] | R5: [cm3/mol] | S5: [K] | T5: [K] | U5: [kJ/mol] | V5: [kJ/mol] | W5: [kJ/mol] | X5: [kJ/mol] | Y5: [J/mol K] | Z5: [J/mol K] | AA5: [J/mol K] | AB5: [J/mol K] | AC5: nA | AD5: Sub MW | AE5: Group MW | AF5: C | AG5: H | AH5: F | AI5: Cl | AJ5: Br | AK5: I | AL5: O | AM5: N | AN5: S | AQ5: Nonring increments: | AT5: [K] | AU5: [bar] | AV5: [cm3/mol] | AW5: [K] | AX5: [K] | AY5: [kJ/mol] | AZ5: [kJ/mol] | BA5: [cal/mol] | BB5: [cal/mol] | BC5: [J/mol K] | BD5: [J/mol K] | BE5: [J/mol K] | BF5: [J/mol K]
B6: -CH3 | E6: =IF(D6>=0 & D6<=100,"",IF(D6 >= " ","X",IF(D6<0,"X",""))) ->  | F6: MW | G6: =IF(AC51=0, " - ",AD51) -> 214.2167 | K6: =IF(AC51=0, " - ",AD51) -> 214.2167 | P6: =$D6*AT6 -> 0 | Q6: =$D6*AU6 -> 0 | R6: =$D6*AV6 -> 0 | S6: =$D6*AW6 -> 0 | T6: =$D6*AX6 -> 0 | U6: =$D6*AY6 -> 0 | V6: =$D6*AZ6 -> 0 | W6: =$D6*BA6*(8.314/1.987)*(1/1000) -> 0 | X6: =$D6*BB6*(8.314/1.987)*(1/1000) -> 0 | Y6: =$D6*BC6 -> 0 | Z6: =$D6*BD6 -> 0 | AA6: =$D6*BE6 -> 0 | AB6: =$D6*BF6 -> 0 | AC6: =$D6*AS6 -> 0 | AD6: =D6*AE6 -> 0 | AE6: =AF6*12.0107+AG6*1.00794+AH6*18.9984032+AI6*35.4527+AJ6*79.904+AK6*126.90447+AL6*15.9994+AM6*14.00674+AN6*32.066 -> 15.03452 | AF6: 1 | AG6: 3 | AQ6: -CH3 | AS6: 4 | AT6: 0.0141 | AU6: -0.0012 | AV6: 65 | AW6: 23.58 | AX6: -5.1 | AY6: -76.45 | AZ6: -43.96 | BA6: 567 | BB6: 217 | BC6: 19.5 | BD6: -0.00808 | BE6: 0.000153 | BF6: -9.67e-08
B7: >CH2 | E7: =IF(D7>=0 & D7<=100,"",IF(D7 >= " ","X",IF(D7<0,"X",""))) ->  | F7: Tb / K | G7: 579.15 | H7: Enter Value for Tb in K | K7: =IF(AC51=0, " - ",198+S51) -> 666.51 | L7: =IF(AC51=0, " - ",K7-273.15) -> 393.36 | M7: oC | P7: 0 | Q7: 0 | R7: 0 | S7: 0 | T7: 0 | U7: 0 | V7: 0 | W7: =$D7*BA7*(8.314/1.987)*(1/1000) -> 0 | X7: =$D7*BB7*(8.314/1.987)*(1/1000) -> 0 | Y7: =$D7*BC7 -> 0 | Z7: 0 | AA7: 0 | AB7: 0 | AC7: 0 | AD7: 0 | AE7: =AF7*12.0107+AG7*1.00794+AH7*18.9984032+AI7*35.4527+AJ7*79.904+AK7*126.90447+AL7*15.9994+AM7*14.00674+AN7*32.066 -> 14.02658 | AF7: 1 | AG7: 2 | AQ7: >CH2 | AS7: 3 | AT7: 0.0189 | AU7: 0 | AV7: 56 | AW7: 22.88 | AX7: 11.27 | AY7: -20.64 | AZ7: 8.42 | BA7: 532 | BB7: 619 | BC7: -0.909 | BD7: 0.095 | BE7: -5.44e-05 | BF7: 1.19e-08
B8: >CH- | P8: 0 | Q8: 0 | R8: 0 | S8: 0 | T8: 0 | U8: 0 | V8: 0 | W8: 0 | X8: 0 | Y8: 0 | Z8: 0 | AA8: 0 | AB8: 0 | AC8: 0 | AD8: 0 | AE8: 13.01864 | AF8: 1 | AG8: 1 | AQ8: >CH- | AS8: 2 | AT8: 0.0164 | AU8: 0.002 | AV8: 41 | AW8: 21.74 | AX8: 12.64 | AY8: 29.89 | AZ8: 58.36 | BA8: 404 | BB8: 179 | BC8: -23 | BD8: 0.204 | BE8: -0.000265 | BF8: 1.2e-07
B9: >C< | F9: Tc / K | G9: =IF(AC51=0, " - ",IF(G7=""," - ",G7/(0.584+0.965*P51-P51^2))) -> 806.591154 | K9: =IF(AC51=0, " - ",K7/(0.584+0.965*P51-P51^2)) -> 928.2587759 | L9: =IF(AC51=0, " - ",K9-273.15) -> 655.1087759 | M9: oC | P9: 0 | Q9: 0 | R9: 0 | S9: 0 | T9: 0 | U9: 0 | V9: 0 | W9: 0 | X9: 0 | Y9: 0 | Z9: 0 | AA9: 0 | AB9: 0 | AC9: 0 | AD9: 0 | AE9: 12.0107 | AF9: 1 | AQ9: >C< | AS9: 1 | AT9: 0.0067 | AU9: 0.0043 | AV9: 27 | AW9: 18.25 | AX9: 46.43 | AY9: 82.23 | AZ9: 116.02 | BA9: 152 | BB9: -349 | BC9: -66.2 | BD9: 0.427 | BE9: -0.000641 | BF9: 3.01e-07
B10: =CH2 | F10: Pc / MPa | G10: =IF(AC51=0, " - ",(0.113+0.0032*AC51-Q51)^(-2)/10) -> 3.423859025 | K10: =IF(AC51=0, " - ",(0.113+0.0032*AC51-Q51)^(-2)/10) -> 3.423859025 | P10: 0 | Q10: 0 | R10: 0 | S10: 0 | T10: 0 | U10: 0 | V10: 0 | W10: 0 | X10: 0 | Y10: 0 | Z10: 0 | AA10: 0 | AB10: 0 | AC10: 0 | AD10: 0 | AE10: 14.02658 | AF10: 1 | AG10: 2 | AQ10: =CH2 | AS10: 3 | AT10: 0.0113 | AU10: -0.0028 | AV10: 56 | AW10: 18.18 | AX10: -4.32 | AY10: -9.63 | AZ10: 3.77 | BA10: 412 | BB10: -113 | BC10: -23.6 | BD10: -0.0381 | BE10: 0.000172 | BF10: -1.03e-07
B11: =CH- | F11: Vc / cm3/mol | G11: =IF(AC51=0, " - ",17.5+R51) -> 579.5 | K11: =IF(AC51=0, " - ",17.5+R51) -> 579.5 | P11: 0 | Q11: 0 | R11: 0 | S11: 0 | T11: 0 | U11: 0 | V11: 0 | W11: 0 | X11: 0 | Y11: 0 | Z11: 0 | AA11: 0 | AB11: 0 | AC11: 0 | AD11: 0 | AE11: 13.01864 | AF11: 1 | AG11: 1 | AQ11: =CH- | AS11: 2 | AT11: 0.0129 | AU11: -0.0006 | AV11: 46 | AW11: 24.96 | AX11: 8.73 | AY11: 37.97 | AZ11: 48.53 | BA11: 527 | BB11: 643 | BC11: -8 | BD11: 0.105 | BE11: -9.63e-05 | BF11: 3.56e-08
B12: =C< | F12: Tf / K | G12: =IF(AC51=0, " - ",122+T51) -> 384.64 | K12: =IF(AC51=0, " - ",122+T51) -> 384.64 | P12: 0 | Q12: 0 | R12: 0 | S12: 0 | T12: 0 | U12: 0 | V12: 0 | W12: 0 | X12: 0 | Y12: 0 | Z12: 0 | AA12: 0 | AB12: 0 | AC12: 0 | AD12: 0 | AE12: 12.0107 | AF12: 1 | AQ12: =C< | AS12: 1 | AT12: 0.0117 | AU12: 0.0011 | AV12: 38 | AW12: 24.14 | AX12: 11.14 | AY12: 83.99 | AZ12: 92.36 | BA12: 511 | BB12: 732 | BC12: -28.1 | BD12: 0.208 | BE12: -0.000306 | BF12: 1.46e-07
B13: =C= | F13: w | G13: =IF(AC51=0, " - ",IF(G7=""," - ",omega(G7,G9,G10))) -> 0.6755865598 | K13: =IF(AC51=0, " - ",IF(K7=""," - ",omega(K7,K9,K10))) -> 0.6755865598 | P13: 0 | Q13: 0 | R13: 0 | S13: 0 | T13: 0 | U13: 0 | V13: 0 | W13: 0 | X13: 0 | Y13: 0 | Z13: 0 | AA13: 0 | AB13: 0 | AC13: 0 | AD13: 0 | AE13: 12.0107 | AF13: 1 | AQ13: =C= | AS13: 1 | AT13: 0.0026 | AU13: 0.0028 | AV13: 36 | AW13: 26.15 | AX13: 17.78 | AY13: 142.14 | AZ13: 136.7 | BA13: 636 | BB13: 1128 | BC13: 27.4 | BD13: -0.0557 | BE13: 0.000101 | BF13: -5.02e-08
B14: -=CH (triple bond) | F14: Ideal gas properties | J14: Ideal gas properties | P14: 0 | Q14: 0 | R14: 0 | S14: 0 | T14: 0 | U14: 0 | V14: 0 | W14: 0 | X14: 0 | Y14: 0 | Z14: 0 | AA14: 0 | AB14: 0 | AC14: 0 | AD14: 0 | AE14: 13.01864 | AF14: 1 | AG14: 1 | AQ14: -=CH (triple bond) | AS14: 2 | AT14: 0.0027 | AU14: -0.0008 | AV14: 46 | AW14: 9.2 | AX14: -11.18 | AY14: 79.3 | AZ14: 77.71 | BA14: 276 | BB14: 555 | BC14: 24.5 | BD14: -0.0271 | BE14: 0.000111 | BF14: -6.78e-08
B15: -=C- (triple bond) | F15: DHfo [kJ/mol] | G15: =IF(AC51=0, " - ",68.29+U51) -> -227.49 | J15: DHfo [kJ/mol] | K15: =G15 -> -227.49 | P15: 0 | Q15: 0 | R15: 0 | S15: 0 | T15: 0 | U15: 0 | V15: 0 | W15: 0 | X15: 0 | Y15: 0 | Z15: 0 | AA15: 0 | AB15: 0 | AC15: 0 | AD15: 0 | AE15: 12.0107 | AF15: 1 | AQ15: -=C- (triple bond) | AS15: 1 | AT15: 0.002 | AU15: 0.0016 | AV15: 37 | AW15: 27.38 | AX15: 64.32 | AY15: 115.51 | AZ15: 109.82 | BA15: 789 | BB15: 992 | BC15: 7.78 | BD15: 0.0201 | BE15: -8.33e-06 | BF15: 1.39e-09
B16: Ring increments: | F16: DGfo [kJ/mol] | G16: =IF(AC51=0, " - ",53.88+V51) -> -41.96 | H16: Enter Value for T in K | J16: DGfo [kJ/mol] | K16: =G16 -> -41.96 | AQ16: Ring increments:
B17: -CH2- | F17: Cpo(T) [J/mol K] | G17: =IF(AC51=0, " - ",G24+H24*H17+I24*H17^2+J24*H17^3) -> 210.4139862 | H17: 298.15 | I17: K | J17: Cpo(T) [J/mol K] | K17: =G17 -> 210.4139862 | P17: =$D17*AT17 -> 0 | Q17: 0 | R17: 0 | S17: 0 | T17: 0 | U17: 0 | V17: 0 | W17: 0 | X17: 0 | Y17: =$D17*BC17 -> 0 | Z17: 0 | AA17: 0 | AB17: 0 | AC17: =$D17*AS17 -> 0 | AD17: =D17*AE17 -> 0 | AE17: 14.02658 | AF17: 1 | AG17: 2 | AQ17: -CH2- | AS17: 3 | AT17: 0.01 | AU17: 0.0025 | AV17: 48 | AW17: 27.15 | AX17: 7.75 | AY17: -26.8 | AZ17: -3.68 | BA17: 573 | BB17: 117 | BC17: -6.03 | BD17: 0.0854 | BE17: -8e-06 | BF17: -1.8e-08
B18: >CH- | F18: Other properties | H18: =H17-273.15 -> 25 | I18: oC | P18: 0 | Q18: 0 | R18: 0 | S18: 0 | T18: 0 | U18: 0 | V18: 0 | W18: =$D18*BA18*(8.314/1.987)*(1/1000) -> 0 | X18: =$D18*BB18*(8.314/1.987)*(1/1000) -> 0 | Y18: 0 | Z18: 0 | AA18: 0 | AB18: 0 | AC18: =$D18*AS18 -> 0 | AD18: =D18*AE18 -> 0 | AE18: 13.01864 | AF18: 1 | AG18: 1 | AQ18: >CH- | AS18: 2 | AT18: 0.0122 | AU18: 0.0004 | AV18: 38 | AW18: 21.78 | AX18: 19.88 | AY18: 8.67 | AZ18: 40.99 | BA18: 464 | BB18: 775 | BC18: 8.67 | BD18: 0.162 | BE18: -0.00016 | BF18: 6.24e-08
B19: >C< | F19: DHvap [kJ/mol] | G19: =IF(AC51=0, " - ",15.3+W51) -> 65.19236839 | H19: at Tb | J19: DHvap [kJ/mol] | K19: =G19 -> 65.19236839 | P19: 0 | Q19: 0 | R19: 0 | S19: 0 | T19: 0 | U19: 0 | V19: 0 | W19: 0 | X19: =$D19*BB19*(8.314/1.987)*(1/1000) -> 0 | Y19: 0 | Z19: 0 | AA19: 0 | AB19: 0 | AC19: =$D19*AS19 -> 0 | AD19: =D19*AE19 -> 0 | AE19: 12.0107 | AF19: 1 | AQ19: >C< | AS19: 1 | AT19: 0.0042 | AU19: 0.0061 | AV19: 27 | AW19: 21.32 | AX19: 60.15 | AY19: 79.72 | AZ19: 87.88 | BA19: 154 | BB19: -328 | BC19: -90.9 | BD19: 0.557 | BE19: -0.0009 | BF19: 4.69e-07
B20: =CH- | D20: 10 | F20: DHmelt [kJ/mol] | G20: =IF(AC51=0, " - ",-0.88+X51) -> 30.85713639 | H20: at Tm | J20: DHmelt [kJ/mol] | K20: =G20 -> 30.85713639 | P20: 0.082 | Q20: 0.011 | R20: 410 | S20: 267.3 | T20: 81.3 | U20: 20.9 | V20: 113 | W20: 25.43991948 | X20: =$D20*BB20*(8.314/1.987)*(1/1000) -> 11.00443885 | Y20: -21.4 | Z20: 0.574 | AA20: -1.64e-05 | AB20: -1.59e-07 | AC20: =$D20*AS20 -> 20 | AD20: =D20*AE20 -> 130.1864 | AE20: 13.01864 | AF20: 1 | AG20: 1 | AQ20: =CH- | AS20: 2 | AT20: 0.0082 | AU20: 0.0011 | AV20: 41 | AW20: 26.73 | AX20: 8.13 | AY20: 2.09 | AZ20: 11.3 | BA20: 608 | BB20: 263 | BC20: -2.14 | BD20: 0.0574 | BE20: -1.64e-06 | BF20: -1.59e-08
B21: =C< | D21: 2 | P21: 0.0286 | Q21: 0.0016 | R21: 64 | S21: 62.02 | T21: 74.04 | U21: 92.86 | V21: 108.1 | W21: 6.117296427 | X21: =$D21*BB21*(8.314/1.987)*(1/1000) -> 4.786721691 | Y21: -16.5 | Z21: 0.202 | AA21: -0.000284 | AB21: 1.356e-07 | AC21: =$D21*AS21 -> 2 | AD21: =D21*AE21 -> 24.0214 | AE21: 12.0107 | AF21: 1 | AQ21: =C< | AS21: 1 | AT21: 0.0143 | AU21: 0.0008 | AV21: 32 | AW21: 31.01 | AX21: 37.02 | AY21: 46.43 | AZ21: 54.05 | BA21: 731 | BB21: 572 | BC21: -8.25 | BD21: 0.101 | BE21: -0.000142 | BF21: 6.78e-08
B22: Halogen increments: | F22: Cpo [J/mol K]= A + B*T + C*T2 + D*T3 (T in K) | AQ22: Halogen increments:
B23: -F | G23: A | H23: B | I23: C | J23: D | P23: =$D23*AT23 -> 0 | Q23: 0 | R23: 0 | S23: 0 | T23: 0 | U23: 0 | V23: 0 | W23: 0 | X23: 0 | Y23: 0 | Z23: 0 | AA23: 0 | AB23: 0 | AC23: =$D23*AS23 -> 0 | AD23: =D23*AE23 -> 0 | AE23: 18.9984032 | AH23: 1 | AQ23: -F | AS23: 1 | AT23: 0.0111 | AU23: -0.0057 | AV23: 27 | AW23: -0.03 | AX23: -15.78 | AY23: -251.92 | AZ23: -247.19 | BA23: -160 | BB23: 334 | BC23: 26.5 | BD23: -0.0913 | BE23: 0.000191 | BF23: -1.03e-07
B24: -Cl | F24: Cpo(T) [J/mol K] | G24: =IF(AC51=0, " - ",Y51-37.93) -> -44.98 | H24: =IF(AC51=0, " - ",Z51+0.21) -> 1.0278 | I24: =IF(AC51=0, " - ",AA51-0.000391) -> -0.0006065 | J24: =IF(AC51=0, " - ",AB51+0.000000206) -> 1.0826e-07 | P24: 0 | Q24: 0 | R24: 0 | S24: 0 | T24: 0 | U24: 0 | V24: 0 | W24: =$D24*BA24*(8.314/1.987)*(1/1000) -> 0 | X24: =$D24*BB24*(8.314/1.987)*(1/1000) -> 0 | Y24: 0 | Z24: 0 | AA24: 0 | AB24: 0 | AC24: =$D24*AS24 -> 0 | AD24: =D24*AE24 -> 0 | AE24: 35.4527 | AI24: 1 | AQ24: -Cl | AS24: 1 | AT24: 0.0105 | AU24: -0.0049 | AV24: 58 | AW24: 38.13 | AX24: 13.55 | AY24: -71.55 | AZ24: -64.31 | BA24: 1083 | BB24: 601 | BC24: 33.3 | BD24: -0.0963 | BE24: 0.000187 | BF24: -9.96e-08
B25: -Br | P25: 0 | Q25: 0 | R25: 0 | S25: 0 | T25: 0 | U25: 0 | V25: 0 | W25: 0 | X25: =$D25*BB25*(8.314/1.987)*(1/1000) -> 0 | Y25: 0 | Z25: 0 | AA25: 0 | AB25: 0 | AC25: =$D25*AS25 -> 0 | AD25: =D25*AE25 -> 0 | AE25: 79.904 | AJ25: 1 | AQ25: -Br | AS25: 1 | AT25: 0.0133 | AU25: 0.0057 | AV25: 71 | AW25: 66.86 | AX25: 43.43 | AY25: -29.48 | AZ25: -38.06 | BA25: 1573 | BB25: 861 | BC25: 28.6 | BD25: -0.0649 | BE25: 0.000136 | BF25: -7.45e-08
B26: -I | P26: 0 | Q26: 0 | R26: 0 | S26: 0 | T26: 0 | U26: 0 | V26: 0 | W26: 0 | X26: =$D26*BB26*(8.314/1.987)*(1/1000) -> 0 | Y26: 0 | Z26: 0 | AA26: 0 | AB26: 0 | AC26: =$D26*AS26 -> 0 | AD26: =D26*AE26 -> 0 | AE26: 126.90447 | AK26: 1 | AQ26: -I | AS26: 1 | AT26: 0.0068 | AU26: -0.0034 | AV26: 97 | AW26: 93.84 | AX26: 41.69 | AY26: 21.06 | AZ26: 5.74 | BA26: 2275 | BB26: 651 | BC26: 32.1 | BD26: -0.0641 | BE26: 0.000126 | BF26: -6.87e-08
B27: Oxygen increments: | F27: X = Error; delete entry or Reset | AQ27: Oxygen increments:
B28: -OH | C28: (alcohol) | P28: =$D28*AT28 -> 0 | Q28: =$D28*AU28 -> 0 | R28: =$D28*AV28 -> 0 | S28: =$D28*AW28 -> 0 | T28: =$D28*AX28 -> 0 | U28: =$D28*AY28 -> 0 | V28: =$D28*AZ28 -> 0 | W28: 0 | X28: 0 | Y28: =$D28*BC28 -> 0 | Z28: =$D28*BD28 -> 0 | AA28: =$D28*BE28 -> 0 | AB28: =$D28*BF28 -> 0 | AC28: =$D28*AS28 -> 0 | AD28: =D28*AE28 -> 0 | AE28: 17.00734 | AG28: 1 | AL28: 1 | AQ28: -OH | AR28: (alcohol) | AS28: 2 | AT28: 0.0741 | AU28: 0.0112 | AV28: 28 | AW28: 92.88 | AX28: 44.45 | AY28: -208.04 | AZ28: -189.2 | BA28: 4021 | BB28: 575 | BC28: 25.7 | BD28: -0.0691 | BE28: 0.000177 | BF28: -9.88e-08
B29: -OH | C29: (phenol) | P29: 0 | Q29: 0 | R29: 0 | S29: 0 | T29: 0 | U29: 0 | V29: 0 | W29: 0 | X29: 0 | Y29: 0 | Z29: 0 | AA29: 0 | AB29: 0 | AC29: 0 | AD29: 0 | AE29: 17.00734 | AG29: 1 | AL29: 1 | AQ29: -OH | AR29: (phenol) | AS29: 2 | AT29: 0.024 | AU29: 0.0184 | AV29: -25 | AW29: 76.34 | AX29: 82.83 | AY29: -221.65 | AZ29: -197.37 | BA29: 2987 | BB29: 1073 | BC29: -2.81 | BD29: 0.111 | BE29: -0.000116 | BF29: 4.94e-08
B30: -O- | C30: (nonring) | P30: 0 | Q30: 0 | R30: 0 | S30: 0 | T30: 0 | U30: 0 | V30: 0 | W30: 0 | X30: 0 | Y30: 0 | Z30: 0 | AA30: 0 | AB30: 0 | AC30: 0 | AD30: 0 | AE30: 15.9994 | AL30: 1 | AQ30: -O- | AR30: (nonring) | AS30: 1 | AT30: 0.0168 | AU30: 0.0015 | AV30: 18 | AW30: 22.42 | AX30: 22.23 | AY30: -132.22 | AZ30: -105 | BA30: 576 | BB30: 284 | BC30: 25.5 | BD30: -0.0632 | BE30: 0.000111 | BF30: -5.48e-08
B31: -O- | C31: (ring) | D31: 2 | P31: 0.0196 | Q31: 0.0096 | R31: 26 | S31: 62.44 | T31: 46.1 | U31: -276.32 | V31: -196.44 | W31: 9.364233518 | X31: 11.75759436 | Y31: 24.4 | Z31: -0.0252 | AA31: 0.0001206 | AB31: -7.72e-08 | AC31: 2 | AD31: 31.9988 | AE31: 15.9994 | AL31: 1 | AQ31: -O- | AR31: (ring) | AS31: 1 | AT31: 0.0098 | AU31: 0.0048 | AV31: 13 | AW31: 31.22 | AX31: 23.05 | AY31: -138.16 | AZ31: -98.22 | BA31: 1119 | BB31: 1405 | BC31: 12.2 | BD31: -0.0126 | BE31: 6.03e-05 | BF31: -3.86e-08
B32: >C=0 | C32: (nonring) | D32: 1 | P32: 0.038 | Q32: 0.0031 | R32: 62 | S32: 76.75 | T32: 61.2 | U32: -133.22 | V32: -120.5 | W32: 8.970918973 | X32: 4.18838148 | Y32: 6.45 | Z32: 0.067 | AA32: -3.57e-05 | AB32: 2.86e-09 | AC32: 2 | AD32: 28.0101 | AE32: 28.0101 | AF32: 1 | AL32: 1 | AQ32: >C=0 | AR32: (nonring) | AS32: 2 | AT32: 0.038 | AU32: 0.0031 | AV32: 62 | AW32: 76.75 | AX32: 61.2 | AY32: -133.22 | AZ32: -120.5 | BA32: 2144 | BB32: 1001 | BC32: 6.45 | BD32: 0.067 | BE32: -3.57e-05 | BF32: 2.86e-09
B33: >C=0 | C33: (ring) | P33: 0 | Q33: 0 | R33: 0 | S33: 0 | T33: 0 | U33: 0 | V33: 0 | W33: 0 | X33: 0 | Y33: 0 | Z33: 0 | AA33: 0 | AB33: 0 | AC33: 0 | AD33: 0 | AE33: 28.0101 | AF33: 1 | AL33: 1 | AQ33: >C=0 | AR33: (ring) | AS33: 2 | AT33: 0.0284 | AU33: 0.0028 | AV33: 55 | AW33: 94.97 | AX33: 75.97 | AY33: -164.5 | AZ33: -126.27 | BA33: 1588 | BC33: 30.4 | BD33: -0.0829 | BE33: 0.000236 | BF33: -1.31e-07
B34: 0=CH- | C34: (aldehyde) | P34: 0 | Q34: 0 | R34: 0 | S34: 0 | T34: 0 | U34: 0 | V34: 0 | W34: 0 | X34: 0 | Y34: 0 | Z34: 0 | AA34: 0 | AB34: 0 | AC34: 0 | AD34: 0 | AE34: 29.01804 | AF34: 1 | AG34: 1 | AL34: 1 | AQ34: 0=CH- | AR34: (aldehyde) | AS34: 3 | AT34: 0.0379 | AU34: 0.003 | AV34: 82 | AW34: 72.24 | AX34: 36.9 | AY34: -162.03 | AZ34: -143.48 | BA34: 2173 | BB34: 764 | BC34: 30.9 | BD34: -0.0336 | BE34: 0.00016 | BF34: -9.88e-08
B35: -COOH | C35: (acid) | P35: 0 | Q35: 0 | R35: 0 | S35: 0 | T35: 0 | U35: 0 | V35: 0 | W35: 0 | X35: 0 | Y35: 0 | Z35: 0 | AA35: 0 | AB35: 0 | AC35: 0 | AD35: 0 | AE35: 45.01744 | AF35: 1 | AG35: 1 | AL35: 2 | AQ35: -COOH | AR35: (acid) | AS35: 4 | AT35: 0.0791 | AU35: 0.0077 | AV35: 89 | AW35: 169.09 | AX35: 155.5 | AY35: -426.72 | AZ35: -387.87 | BA35: 4669 | BB35: 2641 | BC35: 24.1 | BD35: 0.0427 | BE35: 8.04e-05 | BF35: -6.87e-08
B36: -COO- | C36: (ester) | P36: 0 | Q36: 0 | R36: 0 | S36: 0 | T36: 0 | U36: 0 | V36: 0 | W36: 0 | X36: 0 | Y36: 0 | Z36: 0 | AA36: 0 | AB36: 0 | AC36: 0 | AD36: 0 | AE36: 44.0095 | AF36: 1 | AL36: 2 | AQ36: -COO- | AR36: (ester) | AS36: 3 | AT36: 0.0481 | AU36: 0.0005 | AV36: 82 | AW36: 81.1 | AX36: 53.6 | AY36: -337.92 | AZ36: -301.95 | BA36: 2302 | BB36: 1663 | BC36: 24.5 | BD36: 0.0402 | BE36: 4.02e-05 | BF36: -4.52e-08
B37: =O (except as above) | P37: 0 | Q37: 0 | R37: 0 | S37: 0 | T37: 0 | U37: 0 | V37: 0 | W37: 0 | X37: 0 | Y37: 0 | Z37: 0 | AA37: 0 | AB37: 0 | AC37: 0 | AD37: 0 | AE37: 15.9994 | AL37: 1 | AQ37: =O (except as above) | AS37: 1 | AT37: 0.0143 | AU37: 0.0101 | AV37: 36 | AW37: -10.5 | AX37: 2.08 | AY37: -247.61 | AZ37: -250.83 | BA37: 1412 | BB37: 866 | BC37: 6.82 | BD37: 0.0196 | BE37: 1.27e-05 | BF37: -1.78e-08
B38: Nitrogen increments | AQ38: Nitrogen increments
B39: -NH2 | P39: =$D39*AT39 -> 0 | Q39: 0 | R39: 0 | S39: 0 | T39: 0 | U39: 0 | V39: =$D39*AZ39 -> 0 | W39: 0 | X39: 0 | Y39: =$D39*BC39 -> 0 | Z39: =$D39*BD39 -> 0 | AA39: =$D39*BE39 -> 0 | AB39: =$D39*BF39 -> 0 | AC39: =$D39*AS39 -> 0 | AD39: =D39*AE39 -> 0 | AE39: 16.02262 | AG39: 2 | AM39: 1 | AQ39: -NH2 | AS39: 3 | AT39: 0.0243 | AU39: 0.0109 | AV39: 38 | AW39: 73.23 | AX39: 66.89 | AY39: -22.02 | AZ39: 14.07 | BA39: 2578 | BB39: 840 | BC39: 26.9 | BD39: -0.0412 | BE39: 0.000164 | BF39: -9.76e-08
B40: >NH | C40: (nonring) | P40: 0 | Q40: 0 | R40: 0 | S40: 0 | T40: 0 | U40: 0 | V40: 0 | W40: 0 | X40: 0 | Y40: 0 | Z40: 0 | AA40: 0 | AB40: 0 | AC40: 0 | AD40: 0 | AE40: 15.01468 | AG40: 1 | AM40: 1 | AQ40: >NH | AR40: (nonring) | AS40: 2 | AT40: 0.0295 | AU40: 0.0077 | AV40: 35 | AW40: 50.17 | AX40: 52.66 | AY40: 53.47 | AZ40: 89.39 | BA40: 1538 | BB40: 1197 | BC40: -1.21 | BD40: 0.0762 | BE40: -4.86e-05 | BF40: 1.05e-08
B41: >NH | C41: (ring) | P41: 0 | Q41: 0 | R41: 0 | S41: 0 | T41: 0 | U41: 0 | V41: 0 | W41: =$D41*BA41*(8.314/1.987)*(1/1000) -> 0 | X41: 0 | Y41: 0 | Z41: 0 | AA41: 0 | AB41: 0 | AC41: 0 | AD41: 0 | AE41: 15.01468 | AG41: 1 | AM41: 1 | AQ41: >NH | AR41: (ring) | AS41: 2 | AT41: 0.013 | AU41: 0.0114 | AV41: 29 | AW41: 52.82 | AX41: 101.51 | AY41: 31.65 | AZ41: 75.61 | BA41: 1656 | BB41: 1790 | BC41: 11.8 | BD41: -0.023 | BE41: 0.000107 | BF41: -6.28e-08
B42: >N- | C42: (nonring) | P42: 0 | Q42: 0 | R42: 0 | S42: 0 | T42: 0 | U42: 0 | V42: 0 | W42: 0 | X42: 0 | Y42: 0 | Z42: 0 | AA42: 0 | AB42: 0 | AC42: 0 | AD42: 0 | AE42: 14.00674 | AM42: 1 | AQ42: >N- | AR42: (nonring) | AS42: 1 | AT42: 0.0169 | AU42: 0.0074 | AV42: 9 | AW42: 11.74 | AX42: 48.84 | AY42: 123.34 | AZ42: 163.16 | BA42: 453 | BB42: 1124 | BC42: -31.1 | BD42: 0.227 | BE42: -0.00032 | BF42: 1.46e-07
B43: -N= | C43: (nonring) | P43: 0 | Q43: 0 | R43: 0 | S43: 0 | T43: 0 | U43: 0 | V43: 0 | W43: 0 | X43: 0 | Y43: 0 | Z43: 0 | AA43: 0 | AB43: 0 | AC43: 0 | AD43: 0 | AE43: 14.00674 | AM43: 1 | AQ43: -N= | AR43: (nonring) | AS43: 1 | AT43: 0.0255 | AU43: -0.0099 | AW43: 74.6 | AY43: 23.61 | BA43: 797
B44: -N= | C44: (ring) | P44: 0 | Q44: 0 | R44: 0 | S44: 0 | T44: 0 | U44: 0 | V44: 0 | W44: 0 | X44: 0 | Y44: 0 | Z44: 0 | AA44: 0 | AB44: 0 | AC44: 0 | AD44: 0 | AE44: 14.00674 | AM44: 1 | AQ44: -N= | AR44: (ring) | AS44: 1 | AT44: 0.0085 | AU44: 0.0076 | AV44: 34 | AW44: 57.55 | AX44: 68.4 | AY44: 55.52 | AZ44: 79.93 | BA44: 1560 | BB44: 872 | BC44: 8.83 | BD44: -0.00384 | BE44: 4.35e-05 | BF44: -2.6e-08
B45: -CN | P45: 0 | Q45: 0 | R45: 0 | S45: 0 | T45: 0 | U45: 0 | V45: 0 | W45: 0 | X45: 0 | Y45: 0 | Z45: 0 | AA45: 0 | AB45: 0 | AC45: 0 | AD45: 0 | AE45: 26.01744 | AF45: 1 | AM45: 1 | AQ45: -CN | AS45: 2 | AT45: 0.0496 | AU45: -0.0101 | AV45: 91 | AW45: 125.66 | AX45: 59.89 | AY45: 88.43 | AZ45: 89.22 | BA45: 3071 | BB45: 577 | BC45: 36.5 | BD45: -0.00733 | BE45: 0.000184 | BF45: -1.03e-07
B46: -NO2 | P46: 0 | Q46: 0 | R46: 0 | S46: 0 | T46: 0 | U46: 0 | V46: 0 | W46: 0 | X46: 0 | Y46: 0 | Z46: 0 | AA46: 0 | AB46: 0 | AC46: 0 | AD46: 0 | AE46: 46.00554 | AL46: 2 | AM46: 1 | AQ46: -NO2 | AS46: 3 | AT46: 0.0437 | AU46: 0.0064 | AV46: 91 | AW46: 152.54 | AX46: 127.24 | AY46: -66.57 | AZ46: -16.83 | BA46: 4000 | BB46: 2313 | BC46: 25.9 | BD46: -0.00374 | BE46: 0.000129 | BF46: -8.88e-08
B47: Sulfur increments: | Y47: =$D47*BC48 -> 0 | AQ47: Sulfur increments:
B48: -SH | P48: =$D48*AT48 -> 0 | Q48: 0 | R48: 0 | S48: 0 | T48: 0 | U48: 0 | V48: 0 | W48: 0 | X48: 0 | Y48: =$D48*BC49 -> 0 | Z48: =$D48*BD48 -> 0 | AA48: 0 | AB48: 0 | AC48: =$D48*AS48 -> 0 | AD48: =D48*AE48 -> 0 | AE48: 33.07394 | AG48: 1 | AN48: 1 | AQ48: -SH | AS48: 2 | AT48: 0.0031 | AU48: 0.0084 | AV48: 63 | AW48: 63.56 | AX48: 20.09 | AY48: -17.33 | AZ48: -22.99 | BA48: 1645 | BB48: 564 | BC48: 35.3 | BD48: -0.0758 | BE48: 0.000185 | BF48: 1.03e-07
B49: -S- | C49: (nonring) | P49: 0 | Q49: 0 | R49: 0 | S49: 0 | T49: 0 | U49: 0 | V49: 0 | W49: 0 | X49: 0 | Y49: =$D49*BC49 -> 0 | Z49: 0 | AA49: 0 | AB49: 0 | AC49: =$D49*AS49 -> 0 | AD49: =D49*AE49 -> 0 | AE49: 32.066 | AN49: 1 | AQ49: -S- | AR49: (nonring) | AS49: 1 | AT49: 0.0119 | AU49: 0.0049 | AV49: 54 | AW49: 68.78 | AX49: 34.4 | AY49: 41.87 | AZ49: 33.12 | BA49: 1629 | BB49: 987 | BC49: 19.6 | BD49: -0.00561 | BE49: 4.02e-05 | BF49: -2.76e-08
B50: -S- | C50: (ring) | P50: 0 | Q50: 0 | R50: 0 | S50: 0 | T50: 0 | U50: 0 | V50: 0 | W50: 0 | X50: 0 | Y50: =$D50*BC50 -> 0 | Z50: 0 | AA50: 0 | AB50: 0 | AC50: =$D50*AS50 -> 0 | AD50: =D50*AE50 -> 0 | AE50: 32.066 | AN50: 1 | AQ50: -S- | AR50: (ring) | AS50: 1 | AT50: 0.0019 | AU50: 0.0051 | AV50: 38 | AW50: 52.1 | AX50: 79.93 | AY50: 39.1 | AZ50: 27.76 | BA50: 1430 | BB50: 372 | BC50: 16.7 | BD50: 0.00481 | BE50: 2.77e-05 | BF50: -2.11e-08
O51: Sum | P51: =SUM(P6:P50) -> 0.1682 | Q51: 0.0253 | R51: 562 | S51: 468.51 | T51: 262.64 | U51: -295.78 | V51: -95.84 | W51: 49.89236839 | X51: 31.73713639 | Y51: -7.05 | Z51: 0.8178 | AA51: -0.0002155 | AB51: -9.774e-08 | AC51: 26 | AD51: 214.2167
AC53: 0 | AD53: Set = 0 for Hvap and Hmelt since group contributions are incorrect as printed in Poling et al., 2001

Sheet Sheet2

Sheet Sheet3
